bitfinex-derivatives/quotes_BTCF0:USTF0_20250506
["timestamp","ask_amount","ask_price","bid_price","bid_amount"]
[1746570574389,0.3799,95675.0,95674.0,0.95359403]
[1746570574888,0.3799,95675.0,95674.0,0.94359403]
[1746570575190,0.3869,95675.0,95674.0,0.94459403]
[1746570576184,0.3869,95675.0,95674.0,1.44459403]
[1746570577583,0.3869,95675.0,95674.0,1.26159403]
[1746570578584,0.3869,95675.0,95674.0,1.07619403]
[1746570578791,0.3869,95675.0,95674.0,1.08171403]
[1746570579381,0.3869,95675.0,95674.0,0.91171403]
[1746570579787,0.3869,95675.0,95674.0,0.72639403]
[1746570579987,0.3869,95675.0,95674.0,0.81911403]
[1746570580492,0.3869,95675.0,95674.0,0.8190489]
[1746570581802,0.3869,95675.0,95674.0,0.8188889]
[1746570582287,0.3869,95675.0,95674.0,0.8026136]
[1746570582492,0.3869,95675.0,95674.0,0.81866413]
[1746570583192,0.3869,95675.0,95674.0,0.82866413]
[1746570583885,0.5718,95675.0,95674.0,0.82866413]
[1746570585992,0.5718,95675.0,95674.0,0.52705053]
[1746570586192,0.7808514,95675.0,95674.0,0.51705053]
[1746570586598,0.5718,95675.0,95674.0,0.51705053]
[1746570586793,0.5718,95675.0,95674.0,0.72610413]
[1746570587296,0.5718,95675.0,95674.0,0.74610413]
[1746570587492,0.5718,95675.0,95674.0,1.14610413]
[1746570587897,0.5718,95675.0,95674.0,1.32450413]
[1746570590190,0.7808514,95675.0,95674.0,0.51705053]
[1746570590397,0.5718,95675.0,95674.0,0.72610413]
[1746570590596,0.5718,95675.0,95674.0,0.51705053]
[1746570591096,0.7808514,95675.0,95674.0,0.51705053]
[1746570591486,0.7808514,95675.0,95674.0,0.51674979]
[1746570596598,0.7808514,95675.0,95674.0,0.72580339]
[1746570596810,0.7808514,95675.0,95674.0,0.59674979]
[1746570597194,0.7808514,95675.0,95674.0,0.59672343]
[1746570598207,0.5718,95675.0,95674.0,0.80577703]
[1746570598496,0.2008,95675.0,95674.0,1.08577703]
[1746570598696,0.0085,95675.0,95674.0,1.08577703]
[1746570598892,0.0085,95675.0,95674.0,1.08567887]
[1746570599098,0.0085,95675.0,95674.0,1.27487887]
[1746570599602,0.0085,95675.0,95674.0,2.77487887]
[1746570600599,0.0085,95675.0,95674.0,3.49017815]
[1746570601099,0.0085,95675.0,95674.0,3.66817815]
[1746570601299,0.1862,95699.0,95698.0,0.2090012]
[1746570601509,0.1862,95699.0,95698.0,0.95960576]
[1746570601696,0.105,95700.0,95699.0,0.208999]
[1746570601902,0.105,95700.0,95699.0,2.72469956]
[1746570602103,0.105,95700.0,95699.0,3.15269956]
[1746570602295,0.0015,95710.0,95699.0,3.15269956]
[1746570602296,0.0015,95710.0,95699.0,2.95157437]
[1746570602602,0.0015,95710.0,95699.0,2.83147381]
[1746570602806,0.0015,95710.0,95700.0,0.1567411]
[1746570603010,0.0015,95710.0,95703.0,0.2089903]
[1746570603194,0.0015,95710.0,95703.0,0.7389903]
[1746570603399,0.0015,95710.0,95703.0,1.0934783]
[1746570603809,0.0015,95710.0,95705.0,0.2089859]
[1746570604009,0.3194,95720.0,95719.0,0.2089553]
[1746570604198,0.3194,95720.0,95719.0,0.6015153]
[1746570604398,0.3194,95720.0,95719.0,0.6939153]
[1746570604893,0.3194,95720.0,95719.0,0.8939153]
[1746570605095,0.3194,95720.0,95719.0,0.90374546]
[1746570605303,0.29974,95720.0,95719.0,1.00821746]
[1746570605497,0.3608,95730.0,95719.0,1.34406216]
[1746570605704,0.3608,95730.0,95722.0,0.0522372]
[1746570605909,0.3608,95730.0,95723.0,1.5149]
[1746570606105,0.3608,95730.0,95723.0,2.0549]
[1746570606305,0.3608,95730.0,95724.0,0.1817]
[1746570606501,0.3608,95730.0,95727.0,0.052234]
[1746570606702,0.3608,95739.0,95735.0,0.2089204]
[1746570606901,0.3608,95739.0,95735.0,0.7814404]
[1746570607101,0.3608,95739.0,95735.0,0.9594404]
[1746570607406,0.3608,95747.0,95735.0,0.9594404]
[1746570607908,0.3846,95744.0,95735.0,2.5518404]
[1746570608102,0.003,95736.0,95735.0,2.6562964]
[1746570608504,0.001,95736.0,95735.0,2.6562964]
[1746570608699,0.001,95736.0,95735.0,2.6572964]
[1746570609107,0.001,95736.0,95735.0,2.4723764]
[1746570609303,0.001,95736.0,95735.0,1.90152]
[1746570609604,0.001,95736.0,95735.0,2.6028404]
[1746570609810,0.001,95736.0,95735.0,2.7072564]
[1746570610005,0.001,95736.0,95735.0,3.5680564]
[1746570610400,0.001,95736.0,95735.0,3.3831764]
[1746570610599,0.001,95736.0,95735.0,3.5680564]
[1746570610999,0.001,95736.0,95735.0,3.7819564]
[1746570611208,0.001,95736.0,95735.0,3.6895964]
[1746570611510,0.001,95736.0,95735.0,3.00036]
[1746570611712,0.001,95736.0,95735.0,3.3016404]
[1746570612100,0.001,95736.0,95735.0,3.1236404]
[1746570613210,0.3608,95748.0,95744.0,0.2089008]
[1746570613507,0.1831,95747.0,95746.0,0.2088964]
[1746570613708,0.1831,95747.0,95746.0,0.6988964]
[1746570613899,0.1831,95747.0,95746.0,0.5488964]
[1746570614101,0.1831,95747.0,95746.0,0.5588964]
[1746570614311,0.1831,95747.0,95746.0,0.5488964]
[1746570614498,0.1831,95747.0,95746.0,0.3388964]
[1746570614699,0.1871,95747.0,95746.0,0.3388964]
[1746570614899,0.605068,95747.0,95746.0,0.3388964]
[1746570615505,0.605068,95747.0,95746.0,0.5588964]
[1746570615706,0.605068,95747.0,95746.0,1.07452943]
[1746570615911,0.1871,95747.0,95746.0,1.07452943]
[1746570617101,0.1871,95747.0,95746.0,1.08452943]
[1746570619909,0.1871,95747.0,95746.0,1.07452943]
[1746570620610,0.3764,95747.0,95746.0,1.07452943]
[1746570621498,0.3764,95747.0,95746.0,1.07452629]
[1746570621909,0.3734,95747.0,95746.0,1.25916629]
[1746570622111,0.791368,95747.0,95746.0,1.25916629]
[1746570622507,0.791368,95747.0,95746.0,1.2435364]
[1746570622713,0.791368,95747.0,95746.0,0.90690247]
[1746570622911,0.791368,95747.0,95746.0,0.7988964]
[1746570623116,0.791368,95747.0,95746.0,0.99921043]
[1746570623309,0.791368,95747.0,95746.0,0.9835364]
[1746570623509,0.791368,95747.0,95746.0,0.99921066]
[1746570623710,0.791368,95747.0,95746.0,0.9835364]
[1746570624313,0.791368,95747.0,95746.0,0.99884877]
[1746570624514,0.791368,95747.0,95746.0,1.29884877]
[1746570624815,0.791368,95747.0,95746.0,1.28884877]
[1746570625014,0.791368,95747.0,95746.0,1.29884877]
[1746570625214,0.791368,95747.0,95746.0,1.28880877]
[1746570625515,0.791368,95747.0,95746.0,1.29880877]
[1746570626012,0.791368,95747.0,95746.0,1.29964388]
[1746570626219,0.3734,95747.0,95746.0,1.66044388]
[1746570626402,0.1903,95747.0,95746.0,1.66044388]
[1746570626604,0.03268,95756.0,95755.0,0.2088768]
[1746570626810,0.3618,95796.0,95794.0,0.2087917]
[1746570627011,0.001,95826.0,95795.0,0.0521969]
[1746570627012,0.3608,95804.0,95795.0,0.0521969]
[1746570627211,0.44013357,95813.0,95795.0,0.0521969]
[1746570627212,0.13863729,95812.0,95811.0,0.2087547]
[1746570627411,0.29696799,95812.0,95811.0,0.51157218]
[1746570627616,0.10609437,95817.0,95814.0,0.2087481]
[1746570627819,0.10609437,95817.0,95814.0,0.71506012]
[1746570628114,0.06793785,95817.0,95816.0,0.2087438]
[1746570628305,0.04199785,95817.0,95816.0,2.80022381]
[1746570628509,0.01039,95824.0,95823.0,0.2087285]
[1746570628716,0.001,95826.0,95823.0,0.01631202]
[1746570628910,0.29696799,95824.0,95816.0,1.8608]
[1746570629210,0.001,95826.0,95817.0,0.19988976]
[1746570629211,0.29696799,95825.0,95817.0,0.19988976]
[1746570629415,0.01139,95826.0,95818.0,0.01528976]
[1746570629605,0.29696799,95818.0,95815.0,0.1846]
[1746570629912,0.3608,95822.0,95796.0,0.3608]
[1746570629913,0.29696799,95815.0,95802.0,0.09228]
[1746570630119,0.29696799,95806.0,95802.0,0.09228]
[1746570630314,0.29196799,95803.0,95797.0,0.2087838]
[1746570630618,0.29196799,95798.0,95797.0,0.210351]
[1746570630817,0.28696799,95798.0,95797.0,0.0015658]
[1746570631007,0.28696799,95798.0,95771.0,0.19]
[1746570631207,0.64776799,95795.0,95771.0,0.19]
[1746570631408,0.28696799,95803.0,95794.0,0.3608]
[1746570631609,0.28696799,95825.0,95821.0,0.0521828]
[1746570631819,0.28696799,95825.0,95824.0,0.2087264]
[1746570632019,0.28696799,95825.0,95824.0,0.34370314]
[1746570632413,0.28696799,95825.0,95824.0,0.35370314]
[1746570632817,0.001,95826.0,95825.0,0.2087242]
[1746570633124,0.28696799,95825.0,95821.0,0.0521831]
[1746570633414,0.28696799,95825.0,95824.0,0.2087264]
[1746570633609,0.001,95826.0,95825.0,0.2087242]
[1746570633806,0.001,95826.0,95825.0,0.63372181]
[1746570634110,0.28796799,95826.0,95825.0,0.78452181]
[1746570634515,0.28796799,95826.0,95825.0,0.93451457]
[1746570635017,0.29396799,95826.0,95825.0,1.12003301]
[1746570635419,0.29396799,95826.0,95825.0,1.62003301]
[1746570635621,0.007,95826.0,95825.0,1.62003301]
[1746570636511,0.007,95826.0,95825.0,1.81153301]
[1746570636708,0.3608,95866.0,95849.0,0.2086719]
[1746570636911,0.3608,95866.0,95855.0,0.2086589]
[1746570637111,0.3608,95866.0,95855.0,0.2586589]
[1746570637317,0.28796799,95856.0,95855.0,0.2586589]
[1746570637717,0.28796799,95856.0,95855.0,0.2086589]
[1746570638022,0.30196799,95856.0,95855.0,0.2096589]
[1746570638708,0.30196799,95856.0,95855.0,0.55738904]
[1746570638913,0.30196799,95856.0,95855.0,1.07066826]
[1746570639216,0.15994889,95918.0,95875.0,0.3608]
[1746570639414,0.0015,95920.0,95919.0,0.2085196]
[1746570639721,0.0015,95920.0,95919.0,0.6893196]
[1746570639910,0.0015,95920.0,95919.0,0.5693196]
[1746570640111,0.0015,95920.0,95919.0,0.7293196]
[1746570640418,0.0015,95920.0,95919.0,0.6615196]
[1746570640618,0.0015,95920.0,95919.0,0.7815196]
[1746570640913,0.0115,95920.0,95919.0,0.6625196]
[1746570641116,0.0115,95920.0,95919.0,0.3618]
[1746570641316,0.365756,95920.0,95897.0,0.3608]
[1746570641619,0.1906,95919.0,95909.0,0.0521353]
[1746570641831,0.052135,95910.0,95905.0,0.3608]
[1746570642009,0.3608,95914.0,95897.0,0.36846829]
[1746570642010,0.2085653,95898.0,95897.0,0.00766829]
[1746570642207,0.1906,95919.0,95897.0,0.24]
[1746570642519,0.1906,95919.0,95895.0,0.3608]
[1746570642520,0.18291421,95910.0,95894.0,0.052143]
[1746570642719,0.3608,95910.0,95909.0,0.2085414]
[1746570643220,0.1906,95919.0,95918.0,0.2085218]
[1746570643616,0.18441421,95920.0,95918.0,0.2085218]
[1746570643617,0.0015,95920.0,95919.0,0.2085196]
[1746570643818,0.0015,95920.0,95919.0,0.3985196]
[1746570644216,0.0015,95920.0,95919.0,0.2085196]
[1746570644814,0.0015,95920.0,95919.0,0.2885196]
[1746570645019,0.0015,95920.0,95919.0,0.2085196]
[1746570645523,0.0015,95920.0,95919.0,0.2885196]
[1746570646316,0.0015,95920.0,95919.0,0.7085196]
[1746570646824,0.0015,95920.0,95919.0,0.7285196]
[1746570647125,0.0015,95920.0,95919.0,1.0885196]
[1746570647327,0.18291421,95950.0,95921.0,0.0521285]
[1746570647619,0.18291421,95950.0,95943.0,0.2084675]
[1746570647819,0.3608,95952.0,95925.0,0.09316]
[1746570648024,0.18291421,95935.0,95925.0,0.19316]
[1746570648221,0.18291421,95935.0,95927.0,0.0521254]
[1746570648412,0.18291421,95935.0,95925.0,0.09316]
[1746570648721,0.3828,95934.0,95926.0,0.0521261]
[1746570648926,0.3828,95934.0,95926.0,0.06543797]
[1746570649119,0.3828,95934.0,95927.0,0.0521255]
[1746570649315,0.3828,95934.0,95926.0,0.3608]
[1746570649519,0.3828,95934.0,95923.0,1.5]
[1746570649828,0.3828,95934.0,95933.0,0.2084892]
[1746570650021,0.3828,95934.0,95931.0,0.5]
[1746570650219,0.3828,95934.0,95931.0,0.52]
[1746570650420,0.2084914,95932.0,95931.0,0.5]
[1746570650925,0.5627314,95932.0,95931.0,0.5]
[1746570651326,0.5627314,95932.0,95917.0,0.2085228]
[1746570651327,0.2085544,95903.0,95902.0,0.00156409]
[1746570651527,0.5693544,95903.0,95902.0,0.00156409]
[1746570651728,0.2085653,95898.0,95885.0,0.00104291]
[1746570651922,0.2085914,95886.0,95885.0,0.00104291]
[1746570652223,0.2085914,95886.0,95885.0,0.00901649]
[1746570652426,0.56288341,95886.0,95885.0,0.00901649]
[1746570652727,0.31288341,95886.0,95885.0,0.00901649]
[1746570652925,0.70148341,95886.0,95885.0,0.00901649]
[1746570654425,0.5971914,95886.0,95885.0,0.00901649]
[1746570654621,0.3886,95886.0,95885.0,0.21761009]
[1746570654818,0.5971914,95886.0,95885.0,0.00901649]
[1746570655919,0.70148341,95886.0,95885.0,0.00901649]
[1746570657628,0.0521505,95881.0,95858.0,0.01327596]
[1746570657825,0.5694306,95868.0,95858.0,0.01327596]
[1746570658225,0.2086567,95856.0,95855.0,0.00104324]
[1746570658420,0.5694567,95856.0,95855.0,0.00104324]
[1746570658626,0.465124,95856.0,95855.0,0.00104324]
[1746570658827,0.6737807,95856.0,95855.0,0.00872533]
[1746570659027,0.2087024,95835.0,95833.0,0.2087064]
[1746570659228,0.208698,95838.0,95837.0,0.2086959]
[1746570659635,0.403198,95838.0,95837.0,0.2086959]
[1746570659833,0.1905,95838.0,95837.0,0.21641219]
[1746570660035,0.2086816,95845.0,95838.0,0.0521739]
[1746570660235,0.0521674,95850.0,95845.0,0.2086786]
[1746570660428,0.3608,95846.0,95837.0,0.50771629]
[1746570660631,0.2086959,95838.0,95837.0,0.51571629]
[1746570661037,0.7216,95842.0,95837.0,0.57571629]
[1746570661234,0.18291421,95880.0,95837.0,0.57571629]
[1746570661235,0.4129617,95861.0,95855.0,0.2086584]
[1746570661532,0.2086959,95838.0,95837.0,0.51571629]
[1746570662039,0.6738399,95838.0,95837.0,0.50771629]
[1746570662229,0.099344,95838.0,95837.0,0.86851629]
[1746570662542,0.3080399,95838.0,95837.0,0.86851629]
[1746570662836,0.3080399,95838.0,95837.0,0.36951629]
[1746570663038,0.3608,95875.0,95837.0,0.94886029]
[1746570663335,0.1905,95855.0,95854.0,0.208661]
[1746570663529,0.3608,95897.0,95855.0,0.109344]
[1746570663726,0.0521572,95869.0,95862.0,0.3608]
[1746570663925,0.1905,95868.0,95867.0,0.2086327]
[1746570664237,0.208599,95883.0,95867.0,0.07]
[1746570664543,0.2085979,95883.0,95882.0,0.3608]
[1746570665232,0.0521536,95876.0,95873.0,0.3608]
[1746570665438,0.2086175,95874.0,95873.0,0.3608]
[1746570665841,0.5880175,95874.0,95873.0,0.3608]
[1746570666731,0.5930175,95874.0,95873.0,0.3608]
[1746570667734,1.099504,95874.0,95854.0,0.3608]
[1746570667932,0.2086589,95855.0,95854.0,0.3608]
[1746570668340,0.3129829,95855.0,95854.0,0.3608]
[1746570668845,0.2086872,95842.0,95841.0,0.3608]
[1746570669338,0.31302721,95842.0,95841.0,0.3608]
[1746570669930,0.2086959,95838.0,95836.0,0.15402247]
[1746570670136,0.2086981,95837.0,95836.0,0.15402247]
[1746570670542,0.3130421,95837.0,95836.0,0.15402247]
[1746570671853,0.3190421,95837.0,95836.0,0.15402247]
[1746570672246,0.2087068,95833.0,95828.0,0.07304]
[1746570672635,0.3130548,95833.0,95827.0,0.3608]
[1746570673135,0.26081857,95833.0,95827.0,0.3608]
[1746570673538,0.26481857,95833.0,95827.0,0.3608]
[1746570673740,0.45441857,95833.0,95827.0,0.3608]
[1746570675241,0.45641857,95833.0,95832.0,0.00925801]
[1746570675645,0.45541857,95833.0,95832.0,0.00925801]
[1746570676347,0.40018234,95833.0,95832.0,0.00925801]
[1746570676537,0.76098234,95833.0,95832.0,0.00156523]
[1746570676737,0.85406234,95833.0,95832.0,3e-08]
[1746570677238,0.94714234,95833.0,95832.0,3e-08]
[1746570677841,0.94514234,95833.0,95832.0,3e-08]
[1746570678138,0.95014234,95833.0,95832.0,3e-08]
[1746570678546,0.95114234,95833.0,95832.0,0.00100003]
[1746570679047,0.76498234,95833.0,95832.0,0.00100003]
[1746570679233,0.485868,95833.0,95832.0,0.00100003]
[1746570679842,0.6945748,95833.0,95832.0,0.00100003]
[1746570680039,0.69485413,95833.0,95832.0,0.00100003]
[1746570680648,0.73614733,95833.0,95818.0,0.3608]
[1746570680943,0.2087373,95819.0,95818.0,0.3608]
[1746570681250,0.2087656,95806.0,95805.0,0.00793183]
[1746570681444,0.2087765,95801.0,95800.0,0.1]
[1746570681944,0.3131605,95801.0,95800.0,0.1]
[1746570682441,0.15654027,95801.0,95800.0,0.1]
[1746570682838,0.15754027,95801.0,95800.0,0.1]
[1746570683038,0.26192427,95801.0,95800.0,0.10763784]
[1746570683450,0.45692427,95801.0,95800.0,0.10763784]
[1746570684340,0.35554027,95801.0,95800.0,0.10763784]
[1746570684849,0.45992427,95801.0,95800.0,0.10763784]
[1746570685344,0.40768804,95801.0,95800.0,0.1]
[1746570686251,0.10830404,95801.0,95800.0,0.1]
[1746570686548,0.10830404,95801.0,95800.0,0.3087787]
[1746570686861,0.18291421,95820.0,95800.0,0.467133]
[1746570687045,1.3018178,95831.0,95810.0,0.2087525]
[1746570687046,0.2609584,95811.0,95810.0,0.2087525]
[1746570687246,0.2087678,95811.0,95810.0,0.5695525]
[1746570687440,0.2087678,95811.0,95810.0,0.6788965]
[1746570687747,0.2087536,95814.0,95813.0,0.2087481]
[1746570688246,0.2087536,95814.0,95813.0,0.3380921]
[1746570688553,0.15651737,95814.0,95813.0,0.129344]
[1746570689158,0.16151737,95814.0,95813.0,0.130344]
[1746570689546,0.16151737,95814.0,95813.0,0.3190943]
[1746570689949,0.16151737,95814.0,95813.0,0.110344]
[1746570690151,0.16151737,95814.0,95813.0,0.001]
[1746570690360,0.16151737,95814.0,95813.0,0.501]
[1746570690654,0.35964537,95814.0,95813.0,0.501]
[1746570690857,0.2087765,95801.0,95800.0,0.107789]
[1746570691061,0.2087765,95801.0,95800.0,0.1]
[1746570691447,0.26092427,95801.0,95800.0,0.1]
[1746570691858,0.63502427,95801.0,95800.0,0.1]
[1746570692248,0.208783,95798.0,95797.0,1e-07]
[1746570692455,0.663303,95798.0,95797.0,1e-07]
[1746570692655,0.406891,95798.0,95797.0,1e-07]
[1746570693363,0.313171,95798.0,95797.0,1e-07]
[1746570693750,0.500291,95798.0,95797.0,1e-07]
[1746570694050,0.500291,95798.0,95797.0,0.0020001]
[1746570694450,0.4584055,95798.0,95797.0,0.0020001]
[1746570694651,0.4614055,95798.0,95797.0,1e-07]
[1746570695961,0.1698975,95798.0,95797.0,0.3608001]
[1746570696157,0.2630175,95798.0,95797.0,0.3608001]
[1746570697265,0.1698975,95798.0,95797.0,0.3608001]
[1746570697469,0.1698975,95798.0,95797.0,0.5695853]
[1746570697667,0.1698975,95798.0,95797.0,0.3608001]
[1746570698166,0.1698975,95798.0,95797.0,1e-07]
[1746570699564,0.3673975,95798.0,95797.0,1e-07]
[1746570699764,0.1698975,95798.0,95797.0,1e-07]
[1746570700568,0.1698975,95798.0,95797.0,0.1972001]
[1746570702059,0.1698975,95798.0,95796.0,0.1964]
[1746570702060,0.0522042,95783.0,95769.0,0.62043527]
[1746570702271,0.313239,95783.0,95782.0,0.2088157]
[1746570702473,0.313239,95783.0,95782.0,0.3181597]
[1746570702676,0.313239,95783.0,95782.0,0.3281597]
[1746570702970,0.313239,95783.0,95782.0,0.109344]
[1746570703264,0.506739,95783.0,95782.0,0.109344]
[1746570703655,0.313239,95783.0,95782.0,0.109344]
[1746570704368,0.313239,95783.0,95782.0,0.111344]
[1746570704572,0.23228962,95783.0,95782.0,0.111344]
[1746570704763,0.47799562,95783.0,95782.0,0.111344]
[1746570706171,0.47799562,95783.0,95782.0,0.3201619]
[1746570706368,0.47799562,95783.0,95782.0,0.111344]
[1746570707370,0.47799562,95783.0,95782.0,0.121344]
[1746570708870,0.47799562,95783.0,95782.0,0.111344]
[1746570709172,0.47799562,95783.0,95782.0,0.3201619]
[1746570709470,0.47799562,95783.0,95782.0,0.111344]
[1746570710059,0.47799562,95783.0,95782.0,0.3201619]
[1746570710265,0.47799562,95783.0,95782.0,0.111344]
[1746570710973,0.3608,95785.0,95784.0,0.2088135]
[1746570711165,0.5696114,95785.0,95784.0,0.2088135]
[1746570711366,0.5696114,95785.0,95784.0,0.3181575]
[1746570711566,0.5696114,95785.0,95784.0,0.3281575]
[1746570711967,0.5696114,95785.0,95784.0,0.8281575]
[1746570713174,0.5706114,95785.0,95784.0,0.8281575]
[1746570713566,0.5706114,95785.0,95784.0,0.8181575]
[1746570713874,0.5706114,95785.0,95784.0,0.609344]
[1746570714073,0.5696114,95785.0,95784.0,0.8181575]
[1746570714273,0.5696114,95785.0,95784.0,0.8191575]
[1746570714768,0.5696114,95785.0,95784.0,0.8181575]
[1746570715365,0.5696114,95785.0,95784.0,0.8281575]
[1746570716570,0.5696114,95785.0,95784.0,0.619344]
[1746570716773,0.5696114,95785.0,95784.0,0.609344]
[1746570717266,0.7589114,95785.0,95784.0,0.609344]
[1746570718268,0.7589114,95785.0,95784.0,0.109344]
[1746570718269,0.5696114,95785.0,95784.0,0.109344]
[1746570718677,0.5696114,95785.0,95784.0,0.297044]
[1746570718874,0.7610114,95785.0,95784.0,0.297044]
[1746570719474,0.7610114,95785.0,95784.0,0.5058575]
[1746570719975,0.7610114,95785.0,95784.0,0.297044]
[1746570720172,0.7610114,95785.0,95784.0,0.5058575]
[1746570720566,0.7610114,95785.0,95784.0,0.297044]
[1746570721468,0.052195,95800.0,95792.0,0.0521986]
[1746570721770,0.2087577,95811.0,95810.0,0.2087511]
[1746570721971,0.1975,95809.0,95808.0,0.4076612]
[1746570722171,0.1975,95809.0,95808.0,0.9729052]
[1746570722473,0.1975,95809.0,95808.0,0.497444]
[1746570722474,0.406259,95809.0,95808.0,0.497444]
[1746570722668,0.406259,95809.0,95808.0,0.308244]
[1746570722978,0.2087874,95796.0,95795.0,0.09308]
[1746570723269,0.2609819,95797.0,95796.0,0.109344]
[1746570723471,0.4584819,95797.0,95796.0,0.109344]
[1746570723972,0.4062852,95797.0,95796.0,0.5170314]
[1746570724172,0.4062852,95797.0,95796.0,0.502844]
[1746570724580,0.4062852,95797.0,95796.0,0.1989]
[1746570724769,0.2088092,95786.0,95785.0,0.15402247]
[1746570725070,0.5696092,95786.0,95785.0,0.15402247]
[1746570725271,0.5696092,95786.0,95785.0,0.26336647]
[1746570726263,0.7607092,95786.0,95785.0,0.26336647]
[1746570726472,0.9499092,95786.0,95785.0,0.26336647]
[1746570727165,0.9499092,95786.0,95785.0,0.26636647]
[1746570727575,0.9499092,95786.0,95785.0,0.110344]
[1746570728776,0.9499092,95786.0,95785.0,0.001]
[1746570729476,0.9499092,95786.0,95785.0,0.021]
[1746570729677,0.9499092,95786.0,95785.0,0.001]
[1746570734884,0.2088353,95774.0,95773.0,0.03984]
[1746570735181,0.2088528,95766.0,95759.0,0.2088673]
[1746570735385,0.5696528,95766.0,95760.0,0.1902]
[1746570735576,0.5696528,95766.0,95765.0,0.11038822]
[1746570735772,0.5696528,95766.0,95765.0,0.00104422]
[1746570735977,0.9573528,95766.0,95765.0,0.00104422]
[1746570736478,0.9553528,95766.0,95765.0,0.00104422]
[1746570737278,0.9553528,95766.0,95765.0,0.00204422]
[1746570737679,0.7622528,95766.0,95765.0,0.00204422]
[1746570743688,0.7622528,95766.0,95765.0,0.11138822]
[1746570746985,0.7622528,95766.0,95765.0,0.00204422]
[1746570752385,0.7622528,95766.0,95765.0,0.11138822]
[1746570754084,0.7622528,95766.0,95765.0,0.00204422]
[1746570754289,0.2088593,95763.0,95762.0,0.00156638]
[1746570754784,0.2088306,95777.0,95776.0,0.2088242]
[1746570754978,0.2088306,95777.0,95776.0,0.2988242]
[1746570755176,0.2088306,95777.0,95776.0,0.199344]
[1746570755382,0.2088306,95777.0,95776.0,0.1991691]
[1746570755888,0.2088306,95777.0,95776.0,1.001244]
[1746570756086,0.3909306,95777.0,95776.0,1.001244]
[1746570756780,0.3909306,95777.0,95776.0,0.805344]
[1746570757088,0.3929306,95777.0,95776.0,0.805344]
[1746570757489,0.5840306,95777.0,95776.0,0.305344]
[1746570757886,0.2088571,95764.0,95763.0,0.1873]
[1746570758081,0.5696571,95764.0,95763.0,0.3902]
[1746570758278,0.2088593,95763.0,95762.0,0.00156638]
[1746570758580,0.3980593,95763.0,95762.0,0.00156638]
[1746570758785,0.5882593,95763.0,95762.0,0.00156638]
[1746570759392,0.5872593,95763.0,95762.0,0.00156638]
[1746570760090,0.5872593,95763.0,95762.0,0.00256638]
[1746570760491,0.5872593,95763.0,95762.0,0.00156638]
[1746570760678,0.5912593,95763.0,95762.0,0.00256638]
[1746570764185,0.70369952,95763.0,95762.0,0.00256638]
[1746570764386,0.59927552,95763.0,95762.0,0.00256638]
[1746570771001,0.59927552,95763.0,95759.0,0.03934]
[1746570771002,0.2088659,95760.0,95759.0,0.03934]
[1746570771201,0.6621059,95760.0,95759.0,0.03934]
[1746570771400,0.2088855,95751.0,95750.0,0.1984]
[1746570771598,0.5696855,95751.0,95750.0,0.1984]
[1746570771792,0.5696855,95751.0,95750.0,0.307744]
[1746570772497,0.2088855,95751.0,95750.0,0.9466317]
[1746570772902,0.2108855,95751.0,95750.0,0.6966317]
[1746570773095,0.2108855,95751.0,95750.0,0.8746317]
[1746570773601,0.35709847,95768.0,95750.0,1.58164]
[1746570773801,0.3608,95778.0,95771.0,0.2088419]
[1746570773802,0.27876742,95772.0,95771.0,0.2088419]
[1746570774107,0.33097872,95772.0,95771.0,0.2288419]
[1746570774407,0.34204748,95780.0,95772.0,0.0522099]
[1746570774696,0.2088288,95778.0,95777.0,0.2088272]
[1746570774909,0.34204928,95780.0,95779.0,0.2088244]
[1746570775200,0.34204928,95780.0,95779.0,0.2388244]
[1746570775601,0.34204928,95780.0,95779.0,0.6098244]
[1746570775602,0.2123257,95780.0,95779.0,0.6098244]
[1746570775801,0.2123257,95780.0,95779.0,0.401]
[1746570776005,0.2123257,95780.0,95779.0,0.371]
[1746570776199,0.2133257,95780.0,95779.0,0.55]
[1746570776402,0.0522122,95768.0,95749.0,0.20742387]
[1746570776595,0.2088724,95757.0,95756.0,0.366]
[1746570776795,0.5696724,95757.0,95756.0,0.366]
[1746570776994,0.5696724,95757.0,95756.0,0.1853]
[1746570777400,0.2088724,95757.0,95756.0,0.1853]
[1746570777602,0.2088724,95757.0,95756.0,0.6492]
[1746570778100,0.2088724,95757.0,95756.0,0.5592]
[1746570778805,0.2088724,95757.0,95756.0,0.5612]
[1746570779205,0.2088724,95757.0,95756.0,0.5592]
[1746570779206,0.2108724,95757.0,95756.0,0.5592]
[1746570779809,0.2108724,95757.0,95756.0,0.7680746]
[1746570781205,0.2108724,95757.0,95756.0,0.5592]
[1746570781405,0.5716724,95757.0,95756.0,0.3785]
[1746570781611,0.7562724,95757.0,95756.0,0.7573746]
[1746570782108,0.5716724,95757.0,95756.0,0.7573746]
[1746570782501,0.5716724,95757.0,95756.0,0.5873746]
[1746570782897,0.2108724,95757.0,95756.0,0.6918066]
[1746570783204,0.5716724,95757.0,95756.0,0.5565]
[1746570783608,0.5716724,95757.0,95756.0,0.5765]
[1746570783810,0.5716724,95757.0,95756.0,0.5565]
[1746570784103,0.5716724,95757.0,95756.0,1.0565]
[1746570784607,0.5716724,95757.0,95756.0,1.2653746]
[1746570784803,0.3628,95757.0,95756.0,1.2653746]
[1746570785009,0.3628,95757.0,95756.0,1.2753746]
[1746570785309,0.5706724,95757.0,95756.0,1.2763746]
[1746570785509,0.5706724,95757.0,95756.0,1.2663746]
[1746570786911,0.3618,95757.0,95756.0,1.2663746]
[1746570787112,0.3618,95757.0,95756.0,1.3663746]
[1746570787314,0.5706724,95757.0,95756.0,1.3663746]
[1746570787715,0.3618,95757.0,95756.0,1.3663746]
[1746570788109,0.001,95757.0,95756.0,1.3663746]
[1746570789215,0.001,95757.0,95756.0,1.2763746]
[1746570789610,0.001,95757.0,95756.0,1.2663746]
[1746570790007,0.001,95757.0,95756.0,1.2763746]
[1746570790216,0.001,95757.0,95756.0,1.0983746]
[1746570790604,0.3608,95767.0,95766.0,0.2088528]
[1746570790809,0.3608,95767.0,95766.0,0.3788528]
[1746570791013,0.3920252,95779.0,95778.0,0.2088266]
[1746570791320,0.3920252,95779.0,95778.0,0.2488266]
[1746570791704,0.1832,95779.0,95778.0,0.2488266]
[1746570791935,0.1832,95779.0,95778.0,0.6270266]
[1746570792221,0.48293973,95810.0,95793.0,0.2087939]
[1746570792520,0.1832,95795.0,95793.0,0.2587939]
[1746570792814,0.1832,95795.0,95793.0,0.3631859]